bitfinex/quotes_ETHUSD_20240926
["timestamp","ask_amount","ask_price","bid_price","bid_amount"]
[1727331163257,0.8242,2621.6,2621.5,0.07283419]
[1727331163464,3.0514,2621.8,2621.5,0.07283419]
[1727331163660,12.79795065,2623.0,2621.5,0.07283419]
[1727331163661,0.8017,2622.1,2621.8,3.05132]
[1727331163973,3.05055,2622.5,2621.9,3.56771949]
[1727331164143,0.764,2622.4,2622.0,3.0511]
[1727331164344,0.764,2622.4,2622.0,3.12386202]
[1727331165132,3.81464,2622.4,2622.0,0.07276202]
[1727331166047,0.764,2622.4,2622.0,3.12380202]
[1727331167030,0.764,2622.4,2622.0,0.07276202]
[1727331167031,3.05075,2622.3,2622.0,0.07276202]
[1727331167239,0.7766,2622.2,2622.0,0.07276202]
[1727331167572,0.7766,2622.2,2621.8,3.05132]
[1727331167573,0.7766,2622.2,2622.1,0.07274759]
[1727331167781,0.7766,2622.2,2621.7,3.47123615]
[1727331168068,0.7766,2622.2,2622.1,0.07274759]
[1727331168560,0.7766,2622.2,2621.8,3.05133]
[1727331168754,3.82748,2622.2,2622.1,0.07239486]
[1727331168959,0.7766,2622.2,2621.8,3.05133]
[1727331169163,0.7766,2622.2,2622.1,0.07239486]
[1727331169469,0.7766,2622.2,2621.8,3.05133]
[1727331169775,0.7766,2622.2,2621.7,3.47123615]
[1727331169935,3.82755,2622.2,2621.9,0.07037562]
[1727331170272,3.82755,2622.2,2621.7,6.52266615]
[1727331170479,3.82755,2622.2,2622.0,0.07012609]
[1727331170782,3.82755,2622.2,2622.1,0.07011166]
[1727331170783,4.37753,2622.2,2622.1,0.07011166]
[1727331170988,4.3775,2622.2,2621.7,3.05137]
[1727331171158,4.3775,2622.2,2622.1,0.07011166]
[1727331171364,3.05102,2622.1,2621.6,3.05156]
[1727331171684,0.8108,2622.0,2621.5,3.0]
[1727331171846,3.05128,2621.9,2621.4,3.05172]
[1727331172983,3.05128,2621.9,2621.4,6.10341]
[1727331174175,3.05128,2621.9,2621.4,3.05169]
[1727331174793,3.05128,2621.9,2621.5,0.07037052]
[1727331175151,3.05128,2621.9,2621.5,3.12204052]
[1727331175494,2.40520589,2622.0,2621.5,0.07037052]
[1727331175653,5.45631589,2622.0,2621.5,3.12205052]
[1727331177565,1.59440589,2621.9,2621.6,3.05155]
[1727331177778,0.8108,2622.0,2621.6,3.12189042]
[1727331177779,2.40520589,2622.0,2621.6,3.12189042]
[1727331180072,2.40520589,2622.0,2621.6,3.12185042]
[1727331180386,3.793832,2622.1,2621.8,3.05122]
[1727331180387,1.59440589,2622.1,2621.8,3.05122]
[1727331180569,2.93510589,2622.2,2621.8,3.05122]
[1727331180890,2.93510589,2622.2,2621.9,0.07035974]
[1727331181655,5.98599589,2622.2,2621.9,0.07035974]
[1727331181992,2.93510589,2622.2,2621.8,3.05128]
[1727331182201,2.93510589,2622.2,2621.7,3.05138]
[1727331182202,5.98600589,2622.2,2622.0,0.07034531]
[1727331182381,5.98600589,2622.2,2621.7,6.10277]
[1727331182691,1.59440589,2622.1,2621.7,3.05138]
[1727331183757,1.59440589,2622.1,2621.7,6.10276]
[1727331184010,3.05099,2622.1,2621.7,3.05138]
[1727331184302,4.64539589,2622.1,2621.7,3.05138]
[1727331184492,4.64539589,2622.1,2621.6,3.47123615]
[1727331184692,4.64539589,2622.1,2621.6,6.52279615]
[1727331185976,1.59440589,2622.1,2621.7,3.05142]
[1727331186180,2.14440589,2622.1,2621.7,3.05142]
[1727331186380,0.55,2622.1,2621.7,3.05142]
[1727331186579,0.8286,2622.0,2621.7,3.05142]
[1727331186982,0.8286,2622.0,2621.8,3.05127]
[1727331187705,2.42760589,2622.2,2621.8,3.05127]
[1727331189062,2.42760589,2622.2,2621.8,3.05125]
[1727331189270,0.8332,2622.2,2621.8,0.8028]
[1727331189509,2.42760589,2622.2,2621.9,3.05115]
[1727331189819,2.42760589,2622.2,2622.0,0.07030616]
[1727331191101,0.8332,2622.2,2622.0,0.07030616]
[1727331191502,0.8332,2622.2,2621.9,3.05121]
[1727331191713,0.8332,2622.2,2622.1,0.07029173]
[1727331191900,2.42760589,2622.2,2622.0,0.07030616]
[1727331192067,2.42760589,2622.2,2622.1,0.07029173]
[1727331192405,2.42760589,2622.2,2621.9,3.05121]
[1727331192569,2.42760589,2622.2,2622.1,0.07019779]
[1727331192770,0.8332,2622.2,2621.9,3.05121]
[1727331192971,0.8332,2622.2,2622.1,0.07019779]
[1727331193170,2.42760589,2622.2,2621.9,3.05121]
[1727331193370,2.42760589,2622.2,2622.1,0.07019779]
[1727331193603,2.42760589,2622.2,2621.8,0.8028]
[1727331193806,2.42760589,2622.2,2622.1,0.07019779]
[1727331194102,2.42760589,2622.2,2621.8,3.85413]
[1727331194294,2.42760589,2622.2,2622.1,0.07019779]
[1727331194499,2.42760589,2622.2,2621.8,3.85413]
[1727331194684,2.42760589,2622.2,2622.1,0.07019779]
[1727331194881,2.42760589,2622.2,2621.8,3.85413]
[1727331195102,2.42760589,2622.2,2622.1,0.07019779]
[1727331195305,2.42760589,2622.2,2621.8,3.85413]
[1727331195513,2.42760589,2622.2,2622.1,0.07019779]
[1727331195713,2.42760589,2622.2,2621.8,3.85413]
[1727331195892,2.42760589,2622.2,2622.1,0.07019779]
[1727331196416,5.0520582,2622.3,2621.9,3.05116]
[1727331196417,1.59440589,2622.3,2621.9,3.05116]
[1727331196711,1.59440589,2622.3,2622.1,0.07019779]
[1727331196927,1.59440589,2622.3,2622.0,0.07021222]
[1727331197084,1.59440589,2622.4,2622.2,0.07018336]
[1727331197420,2.37240589,2622.5,2622.3,0.07011413]
[1727331197620,1.59440589,2622.4,2622.1,3.05092]
[1727331198526,4.64507589,2622.4,2621.9,4.65356376]
[1727331198991,1.59440589,2622.3,2621.9,4.65356376]
[1727331200404,1.59440589,2622.3,2621.9,3.05114]
[1727331201789,1.59440589,2622.2,2621.9,3.05114]
[1727331202129,1.59440589,2622.3,2621.9,6.1023]
[1727331202335,1.59440589,2622.3,2621.9,6.10229]
[1727331202782,1.59440589,2622.2,2621.9,3.05114]
[1727331202981,1.59440589,2622.3,2622.0,0.7563]
[1727331203184,0.778,2622.5,2622.0,0.7563]
[1727331203185,1.59440589,2622.5,2622.2,3.05078]
[1727331203385,1.59440589,2622.6,2622.3,3.05075]
[1727331203586,1.59440589,2622.5,2622.3,3.05075]
[1727331203888,1.59440589,2622.5,2622.2,3.05078]
[1727331204196,1.59440589,2622.5,2622.1,3.05098]
[1727331204616,1.59440589,2622.5,2622.0,10.33070419]
[1727331204617,1.59440589,2622.4,2622.0,10.33070419]
[1727331204830,1.59440589,2622.4,2622.2,0.0698467]
[1727331205133,1.59440589,2622.4,2622.0,7.27968419]
[1727331205428,1.59440589,2622.4,2622.1,0.06986113]
[1727331206183,4.64516589,2622.3,2621.8,3.05131]
[1727331206402,4.64516589,2622.3,2622.2,0.06975276]
[1727331206889,4.64516589,2622.3,2621.8,3.05131]
[1727331207089,4.64516589,2622.3,2622.2,0.06975276]
[1727331207291,3.80436599,2622.3,2621.8,3.05131]
[1727331207494,4.64516589,2622.3,2622.2,0.06975276]
[1727331207691,4.64516589,2622.3,2621.8,3.05131]
[1727331208135,1.59440589,2622.3,2621.9,3.05121]
[1727331208310,4.64504589,2622.4,2621.9,3.12100605]
[1727331208629,1.59440589,2622.3,2621.9,3.12100605]
[1727331208790,1.59440589,2622.3,2621.9,6.17216605]
[1727331208995,4.64504589,2622.4,2622.0,3.8702]
[1727331209217,4.64504589,2622.4,2622.0,3.93998162]
[1727331209442,4.64504589,2622.4,2622.0,0.88888162]
[1727331215544,4.64504589,2622.4,2622.0,0.06978162]
[1727331216121,5.70368396,2622.4,2622.0,0.06978162]
[1727331217164,1.59440589,2622.4,2622.0,3.12088162]
[1727331218058,1.59440589,2622.4,2622.0,0.06978162]
[1727331218223,1.59440589,2622.4,2621.8,0.8004]
[1727331218224,1.59440589,2622.3,2621.9,6.10234]
[1727331218412,1.59440589,2622.3,2622.1,0.06972806]
[1727331218612,3.82409,2622.2,2621.8,0.8004]
[1727331218817,3.82409,2622.2,2621.8,3.85168]
[1727331218818,2.36760589,2622.2,2621.8,3.85168]
[1727331219914,2.36760589,2622.2,2621.9,3.12097692]
[1727331220117,0.7732,2622.2,2621.9,3.12097692]
[1727331220462,2.36760589,2622.2,2621.9,3.12097692]
[1727331221261,2.36760589,2622.2,2621.9,0.06975692]
[1727331221968,5.41847589,2622.2,2621.9,0.06975692]
[1727331222164,2.36760589,2622.2,2621.9,0.06975692]
[1727331222463,2.36760589,2622.2,2621.9,3.12097692]
[1727331222668,1.59440589,2622.3,2622.0,4.65386603]
[1727331222971,1.59440589,2622.4,2622.0,4.72360852]
[1727331223158,1.59440589,2622.4,2622.1,3.0509]
[1727331223484,1.59440589,2622.3,2622.2,0.06988394]
[1727331223829,1.59440589,2622.4,2622.2,4.72353997]
[1727331224051,1.59440589,2622.4,2622.2,1.67266997]
[1727331226277,1.59440589,2622.3,2622.2,0.06988394]
[1727331226484,1.59440589,2622.3,2622.0,4.65386603]
[1727331226722,1.59440589,2622.3,2622.2,0.06988394]
[1727331226886,1.59440589,2622.3,2622.1,0.06989837]
[1727331227197,1.59440589,2622.4,2622.2,0.06988394]
[1727331227533,1.59440589,2622.4,2622.0,4.65386603]
[1727331227775,1.59440589,2622.4,2622.3,0.06986951]
[1727331227985,2.0020319,2622.5,2622.3,0.8023]
[1727331228278,0.03784227,2622.9,2622.6,0.8023]
[1727331228477,0.03784227,2622.9,2622.8,4.65295603]
[1727331228982,0.03784227,2622.9,2622.8,4.72163581]
[1727331230356,0.03784227,2622.9,2622.8,6.58852079]
[1727331231078,0.03784227,2622.9,2622.8,6.61217192]
[1727331233554,0.03784227,2622.9,2622.8,6.58852079]
[1727331233944,0.03784227,2622.9,2622.8,7.43435397]
[1727331235881,0.03784227,2622.9,2622.8,10.43435397]
[1727331236091,0.03784227,2622.9,2622.8,10.41072079]
[1727331236884,0.0380091,2623.7,2623.6,3.83844]
[1727331237088,0.0380091,2623.7,2623.6,7.37628414]
[1727331240683,0.0380091,2623.7,2623.6,3.53784414]
[1727331242661,0.0380091,2623.7,2623.6,6.58708414]
[1727331247120,0.0380091,2623.7,2623.6,6.61065348]
[1727331248016,0.0380091,2623.7,2623.6,6.58708414]
[1727331250417,0.0380091,2623.7,2623.6,4.71798236]
[1727331251119,0.0380091,2623.7,2623.6,0.06817313]
[1727331251120,0.8556091,2623.7,2623.6,0.06817313]
[1727331253347,3.9047291,2623.7,2623.6,0.06817313]
[1727331253498,4.29520201,2623.7,2623.6,0.06817313]
[1727331253697,4.29520201,2623.7,2623.1,4.65036923]
[1727331254021,6.09857,2623.6,2623.2,0.06410423]
[1727331254237,0.806,2623.5,2623.2,0.06410423]
[1727331254398,0.806,2623.5,2623.2,1.66467346]
[1727331254738,0.806,2623.5,2623.3,0.06217981]
[1727331255037,0.806,2623.5,2623.2,1.60056923]
[1727331255238,0.806,2623.5,2623.3,0.06217981]
[1727331255534,0.806,2623.5,2623.2,1.60056923]
[1727331255850,0.806,2623.5,2623.3,0.06035336]
[1727331255851,4.84326323,2623.5,2623.3,0.06035336]
[1727331256134,3.04979,2623.2,2622.8,1.60056923]
[1727331256505,3.04979,2623.2,2622.6,1.60056923]
[1727331256506,0.797,2623.1,2622.6,1.60056923]
[1727331256834,3.05,2623.0,2622.6,1.60056923]
[1727331257946,3.87292,2623.1,2622.6,4.65093923]
[1727331258150,0.8231,2623.1,2623.0,1.60056923]
[1727331258351,0.7552,2623.3,2622.9,6.51971254]
[1727331259226,0.7552,2623.3,2622.9,3.46966254]
[1727331260044,0.7552,2623.3,2622.9,6.51970254]
[1727331261610,0.7552,2623.3,2622.9,3.46966254]
[1727331262060,0.7552,2623.3,2622.9,3.49330026]
[1727331262556,0.7552,2623.3,2622.9,6.54325026]
[1727331262849,0.7552,2623.3,2623.1,3.04978]
[1727331263067,0.8279,2623.5,2623.2,3.04959]
[1727331263578,0.0380091,2623.7,2623.5,0.7924]
[1727331263725,0.0380091,2623.7,2623.6,3.07280605]
[1727331264138,0.0380091,2623.7,2623.6,3.04924]
[1727331264858,0.0380091,2623.7,2623.6,3.10967524]
[1727331267857,0.0380091,2623.7,2623.6,0.06043524]
[1727331269521,0.0380091,2623.7,2623.6,3.10967524]
[1727331273566,0.0380091,2623.7,2623.6,0.06043524]
[1727331274959,0.8106091,2623.7,2623.6,3.10967524]
[1727331275466,0.0380091,2623.7,2623.6,3.10967524]
[1727331275870,0.0380091,2623.7,2623.6,0.06043524]
[1727331276044,0.0380091,2623.7,2623.6,3.10967524]
[1727331278338,0.0380091,2623.7,2623.6,6.57933778]
[1727331278670,0.0380091,2623.7,2623.6,3.10967524]
[1727331278878,0.0380091,2623.7,2623.6,0.06043524]
[1727331279241,0.0380091,2623.7,2623.6,3.10967524]
[1727331279738,0.0380091,2623.7,2623.6,0.06043524]
[1727331280074,0.8240091,2623.7,2623.4,3.04939]
[1727331280279,0.8240091,2623.7,2623.5,0.05766211]
[1727331281940,1.37104753,2623.7,2623.5,0.05766211]
[1727331282188,6.00411516,2623.6,2623.5,0.05766211]
[1727331282350,0.8074,2623.4,2622.7,3.46966254]
[1727331282548,0.8074,2623.4,2623.0,3.04987]
[1727331282940,0.8074,2623.4,2623.1,3.46966254]
[1727331283171,2.54882126,2623.6,2623.2,3.0496]
[1727331283172,1.59907528,2623.6,2623.2,3.0496]
[1727331283368,0.8462091,2623.7,2623.3,3.46966254]
[1727331283589,0.8462091,2623.7,2623.4,3.0494]
[1727331283870,0.8462091,2623.7,2623.4,6.09881]
[1727331284098,0.8462091,2623.7,2623.4,3.0494]
[1727331284789,0.8462091,2623.7,2623.4,6.09881]
[1727331285119,0.0380091,2623.7,2623.4,3.0494]
[1727331285320,0.0380091,2623.7,2623.4,6.0988]
[1727331285475,0.0380091,2623.7,2623.4,6.09879]
[1727331285674,0.0380091,2623.7,2623.4,3.04939]
[1727331285968,0.0380091,2623.7,2623.3,0.8318]
[1727331286168,0.0380091,2623.7,2623.2,3.04963]
[1727331286612,0.0380091,2623.7,2623.3,3.04957]
[1727331288623,0.0380091,2623.7,2623.2,3.04963]
[1727331288624,0.0380091,2623.7,2623.4,3.04947]
[1727331290611,0.0380091,2623.7,2623.6,3.04924]
[1727331291719,0.0380091,2623.7,2623.5,0.8314]
[1727331291900,0.0380091,2623.7,2623.5,3.88072]
[1727331292614,0.0380091,2623.7,2623.5,3.04932]
[1727331293004,0.0380091,2623.7,2623.4,3.04941]
[1727331293210,0.0380091,2623.7,2623.5,3.04934]
[1727331293795,0.0380091,2623.7,2623.4,3.04939]
[1727331294200,0.0380091,2623.7,2623.5,3.04934]
[1727331295028,0.0380091,2623.7,2623.6,0.05414058]
[1727331295819,0.0380091,2623.7,2623.6,6.57304312]
[1727331298410,0.0380091,2623.7,2623.6,7.34524312]
[1727331298879,0.0380091,2623.7,2623.6,7.36882128]
[1727331299727,0.0380091,2623.7,2623.6,7.80722749]
[1727331299879,0.0380091,2623.7,2623.6,7.78364933]
[1727331300706,0.0380091,2623.7,2623.6,10.78364933]
[1727331301098,0.0380091,2623.7,2623.6,10.34524312]
[1727331301314,0.0380091,2623.7,2623.6,10.78371633]
[1727331307347,0.0380091,2623.7,2623.6,7.31405379]
[1727331307555,0.0380091,2623.7,2623.6,6.87558058]
[1727331307723,0.0380091,2623.7,2623.6,10.78418173]
[1727331308430,0.0380091,2623.7,2623.6,8.91490636]
[1727331309661,0.0380091,2623.7,2623.6,9.79291016]
[1727331310746,0.0380091,2623.7,2623.6,9.79270928]
[1727331313456,0.0380091,2623.7,2623.6,8.4759643]
[1727331314554,0.0380091,2623.7,2623.6,8.91477598]
[1727331315946,0.0380091,2623.7,2623.6,7.31439226]
[1727331316114,0.0380091,2623.7,2623.6,8.91477598]
[1727331316316,0.0380091,2623.7,2623.6,7.31439226]
[1727331316548,0.0380091,2623.7,2623.6,8.91477598]
[1727331316960,0.7992091,2623.7,2623.6,0.49295226]
[1727331317160,1.03903754,2623.7,2623.6,0.49295226]
[1727331317553,1.03903754,2623.7,2623.6,2.09333598]
[1727331317755,0.7992091,2623.7,2623.6,1.6545243]
[1727331318289,0.0380091,2623.7,2623.6,1.6545243]
[1727331318489,0.0380091,2623.7,2623.6,4.7037643]
[1727331318852,0.8319091,2623.7,2623.6,0.05414058]
[1727331319891,0.8319091,2623.7,2623.6,4.7037643]
[1727331320089,0.0380091,2623.7,2623.6,4.7037643]
[1727331320899,0.0380091,2623.7,2623.6,4.72733997]
[1727331321121,0.0380091,2623.7,2623.6,7.72733997]
[1727331321389,0.0380091,2623.7,2623.6,7.7037643]
[1727331321776,0.0380091,2623.7,2623.6,8.92577143]
[1727331322295,0.0380091,2623.7,2623.6,8.4869643]
[1727331332414,0.0380091,2623.7,2623.6,6.88658058]
[1727331332610,0.0380091,2623.7,2623.6,7.7037643]
[1727331332844,0.8210091,2623.7,2623.6,4.7037643]
[1727331334253,0.0380091,2623.7,2623.6,5.55844971]
[1727331334461,0.0380091,2623.7,2623.6,7.42495042]
[1727331335508,0.0380091,2623.7,2623.6,10.42495042]
[1727331335761,0.0380091,2623.7,2623.6,10.40139831]
[1727331339062,0.0380091,2623.7,2623.6,6.93448058]
[1727331339210,0.0380091,2623.7,2623.6,10.42493554]
[1727331339421,0.0380091,2623.7,2623.6,10.40139831]
[1727331343974,0.0380091,2623.7,2623.6,9.57029831]
[1727331347540,0.8557091,2623.7,2623.6,9.57029831]
[1727331347718,0.8557091,2623.7,2623.6,6.57029831]
[1727331350710,0.8557091,2623.7,2623.6,9.57029831]
[1727331356307,0.8557091,2623.7,2623.6,7.70376475]
[1727331361311,0.0380091,2623.7,2623.6,8.46566475]
[1727331364427,0.0380091,2623.7,2623.6,7.70376475]
[1727331368079,0.8296091,2623.7,2623.6,7.70376475]
[1727331369638,0.8296091,2623.7,2623.6,4.70376475]
[1727331370651,0.8296091,2623.7,2623.6,3.10338058]
[1727331371071,2.67409554,2623.7,2623.6,0.05414058]
[1727331371270,4.76712511,2623.7,2623.6,0.05414058]
[1727331371484,0.7872,2623.5,2623.0,3.04989]
[1727331371685,0.7872,2623.5,2623.0,4.65027417]
[1727331371686,0.7872,2623.3,2623.0,4.65027417]
[1727331372243,0.8107,2623.2,2623.0,1.60038417]
[1727331372449,0.8107,2623.1,2622.8,1.60038417]
[1727331373419,2.09487099,2623.2,2622.8,1.60038417]
[1727331373696,0.7847,2623.0,2622.8,1.60038417]
[1727331374192,0.7847,2623.0,2622.9,3.05005]
[1727331375472,0.7584,2623.4,2623.3,3.04959]
[1727331375644,0.7584,2623.4,2623.3,4.64997417]
[1727331376348,0.7584,2623.4,2623.2,6.09926]
[1727331376690,0.7584,2623.4,2623.2,3.04963]
[1727331376891,0.7584,2623.4,2623.3,3.04959]
[1727331377103,0.7584,2623.4,2623.2,3.04963]
[1727331377385,0.7584,2623.4,2623.2,6.09927]
[1727331377584,0.7584,2623.4,2623.2,3.04963]
[1727331379599,0.7584,2623.4,2623.1,3.04982]
[1727331380362,0.7584,2623.4,2623.0,3.04987]
[1727331380363,1.14869484,2623.4,2623.0,3.04987]
[1727331380566,0.7566,2623.3,2623.0,3.04987]
[1727331380976,0.7566,2623.3,2623.1,3.04976]
[1727331381801,0.7566,2623.3,2623.0,6.5192119]
[1727331381956,0.7566,2623.6,2623.2,6.5190519]
[1727331382302,0.7566,2623.6,2623.3,3.04958]
[1727331382652,0.7566,2623.6,2623.2,6.5189719]
[1727331383101,0.7566,2623.6,2623.2,9.5686119]
[1727331383395,0.7566,2623.6,2623.3,3.04957]
[1727331384168,0.7566,2623.6,2623.2,9.5686219]
[1727331384391,0.7566,2623.6,2623.2,6.5189719]
[1727331384596,0.7566,2623.6,2623.3,3.04958]
[1727331384902,0.7566,2623.6,2623.4,0.04035442]
[1727331385557,0.7566,2623.6,2623.5,0.04034001]
[1727331386589,0.7566,2623.6,2623.3,3.04949]
[1727331386794,0.7566,2623.6,2623.4,3.08982442]
[1727331386959,0.7566,2623.6,2623.4,0.04035442]
[1727331387184,0.7566,2623.6,2623.2,6.5189519]
[1727331387371,0.7566,2623.6,2623.3,3.08989884]
[1727331389069,0.7566,2623.6,2623.3,0.04036884]
[1727331389308,0.7566,2623.6,2623.2,6.5189519]
[1727331389497,0.7566,2623.6,2623.4,0.04035442]
[1727331389706,0.7566,2623.6,2623.3,0.04036884]
[1727331389915,0.7566,2623.6,2623.5,0.04034001]
[1727331390121,0.7566,2623.6,2623.4,0.04035442]
[1727331390277,0.7566,2623.6,2623.5,0.04034001]
[1727331390675,0.7566,2623.6,2623.3,3.04956]
[1727331390904,0.7566,2623.6,2623.5,0.04034001]
[1727331391091,0.7566,2623.6,2623.4,0.04035442]
[1727331391290,0.7566,2623.6,2623.5,0.04034001]
[1727331391488,0.0380091,2623.7,2623.5,0.04034001]
[1727331391718,0.7997091,2623.7,2623.5,6.5186219]
[1727331391893,0.0380091,2623.7,2623.6,0.04032559]
[1727331392255,0.0380091,2623.7,2623.6,3.08956559]
[1727331393253,0.0380091,2623.7,2623.6,0.04032559]
[1727331396948,1.3888091,2623.7,2623.6,0.04032559]
[1727331397116,6.88826731,2623.7,2623.6,0.04032559]
[1727331397315,0.7712,2623.0,2622.6,3.05035]
[1727331397736,0.7712,2623.0,2622.7,0.07155878]
[1727331398142,0.7712,2623.0,2622.7,3.12177878]
[1727331398353,0.7712,2623.0,2622.7,0.07155878]
[1727331399914,4.21278657,2623.0,2622.7,0.07155878]
[1727331400161,1.16283657,2623.0,2622.4,6.5199019]
[1727331400366,0.7712,2623.0,2622.8,0.05563279]
[1727331400664,3.05007,2622.9,2622.4,3.05056]
[1727331400831,0.8332,2622.8,2622.4,3.05056]
[1727331401155,0.8332,2622.8,2622.2,6.5201219]
[1727331401453,3.88346,2622.8,2622.2,6.5201219]
[1727331401614,0.8332,2622.8,2622.2,6.5201219]
[1727331401810,0.8332,2622.8,2622.4,3.4693419]
[1727331402014,0.8332,2622.8,2622.4,6.5198819]
[1727331402461,0.8332,2622.8,2622.4,6.54357237]
[1727331402665,0.8332,2622.8,2622.4,9.5704419]
[1727331402865,0.8332,2622.8,2622.4,6.5198819]
[1727331403222,0.8332,2622.8,2622.4,9.5704519]
[1727331403477,0.8332,2622.8,2622.5,3.05052]
[1727331403658,0.8332,2622.8,2622.4,6.5198819]
[1727331404458,0.8332,2622.8,2622.4,9.5704219]
[1727331406248,0.8332,2622.8,2622.4,6.5198819]
[1727331407175,0.8332,2622.8,2622.4,9.5704519]
[1727331407695,0.8332,2622.8,2622.5,3.05051]
[1727331407886,0.8332,2622.8,2622.5,3.07419606]
[1727331408261,0.759,2623.0,2622.6,6.5196819]
[1727331408508,0.759,2623.0,2622.7,3.05028]
[1727331409414,0.759,2623.0,2622.6,6.5197419]
[1727331409575,0.759,2623.0,2622.6,3.0504]
[1727331409973,1.59820198,2623.4,2622.9,3.4693419]
[1727331410177,5.80771838,2623.5,2622.9,6.5193119]
[1727331410178,3.81171,2623.5,2622.9,6.5193119]
[1727331410373,0.381171,2623.4,2622.9,9.5692719]
[1727331410608,0.381171,2623.4,2622.9,6.5193019]
[1727331410800,3.81171,2623.5,2622.9,6.5193019]
[1727331411015,6.86115,2623.5,2622.9,6.5193019]
[1727331411213,3.81171,2623.5,2622.9,9.5692919]
[1727331412280,3.04948,2623.4,2622.9,6.5193019]
[1727331412680,3.81171,2623.5,2622.9,6.5193019]
[1727331412920,3.81171,2623.5,2622.9,9.5692619]
[1727331413125,7.71086011,2623.5,2622.9,6.5193019]
[1727331413430,4.66142011,2623.5,2622.9,9.5693019]
[1727331413796,3.04952,2623.4,2622.9,6.5193019]
[1727331414400,3.04952,2623.4,2622.9,9.5693019]
[1727331414903,3.04952,2623.4,2623.0,0.04251754]
[1727331416893,3.68502381,2623.4,2623.0,0.04251754]
[1727331418427,3.68502381,2623.4,2623.0,3.09244754]
[1727331418729,3.68502381,2623.4,2623.0,0.04251754]
[1727331419087,0.63550381,2623.4,2623.0,0.06615608]
[1727331419287,1.61201011,2623.5,2623.1,3.04981]
[1727331419482,1.61201011,2623.5,2623.1,3.09232886]
[1727331419684,0.7623,2623.5,2623.2,3.04969]
[1727331420115,0.7623,2623.5,2623.3,0.04249257]
[1727331420486,0.7623,2623.5,2623.2,3.04969]
[1727331420688,0.7623,2623.5,2623.4,0.04626139]
[1727331420884,0.7623,2623.5,2623.3,0.0424243]
[1727331421127,0.7623,2623.5,2623.1,3.04981]
[1727331421333,0.7623,2623.5,2623.4,0.04240628]
[1727331421530,0.7623,2623.5,2623.0,3.88214461]
[1727331421531,0.7623,2623.5,2623.0,6.93198461]
[1727331421693,0.7623,2623.5,2623.4,0.04240628]
[1727331421892,0.7623,2623.5,2623.1,3.04978]
[1727331422426,0.7623,2623.5,2623.2,0.04630071]
[1727331422585,0.7623,2623.5,2623.2,3.09589071]
[1727331422789,5.0855604,2623.7,2623.2,6.58896696]
[1727331422790,0.7918091,2623.7,2623.2,6.58896696]
[1727331422997,0.7918091,2623.7,2623.4,3.04944]
[1727331423435,0.7918091,2623.7,2623.2,6.56534261]
[1727331423436,0.7918091,2623.7,2623.5,3.10022591]
[1727331423598,0.0380091,2623.7,2623.5,3.10022591]
[1727331423787,0.0380091,2623.7,2623.6,3.04924]
[1727331423993,0.0380091,2623.7,2623.6,0.05084429]
[1727331424231,0.0380091,2623.7,2623.6,3.10008429]
[1727331432464,0.0380091,2623.7,2623.6,4.70070016]
[1727331432812,0.0380091,2623.7,2623.6,4.64985587]
[1727331433425,0.0380091,2623.7,2623.6,4.67343544]
[1727331433759,0.0380091,2623.7,2623.6,5.48173364]
[1727331434049,0.0380091,2623.7,2623.6,8.48173364]
[1727331434252,0.0380091,2623.7,2623.6,8.45815587]
[1727331441847,0.0380091,2624.4,2624.3,3.87133]
[1727331442189,0.0380091,2624.4,2624.3,5.47194587]
[1727331442399,0.0380091,2624.4,2624.3,8.49545244]
[1727331442548,0.0380091,2624.4,2624.3,8.47194587]
[1727331444391,0.0380091,2624.4,2624.3,10.3364901]
[1727331447073,0.0380091,2624.4,2624.3,6.87133]
[1727331447290,0.0380091,2624.4,2624.3,10.3364901]
[1727331454454,0.0380091,2624.4,2624.3,6.5135901]
[1727331454739,0.0380091,2624.4,2624.3,3.4651601]
[1727331454906,0.0380091,2624.4,2624.3,6.5135901]
[1727331456952,0.0380091,2624.4,2624.3,3.4651601]
[1727331457152,0.0380091,2624.4,2624.2,3.04854]
[1727331457452,0.0380091,2624.4,2624.2,3.04847]
[1727331458018,0.7786,2624.3,2624.1,3.4651601]
[1727331458548,0.7786,2624.3,2623.8,3.4651601]
[1727331458549,3.82708,2624.3,2623.8,3.4651601]
[1727331458719,3.04855,2624.2,2623.8,6.5141401]
[1727331459064,3.04855,2624.2,2623.6,3.86765176]
[1727331459065,3.84388,2624.1,2623.7,3.4651601]
[1727331459351,3.84388,2624.1,2623.6,3.04917]
[1727331459516,3.84388,2624.1,2623.6,6.09835]
[1727331459716,4.51780597,2624.1,2623.6,3.04917]
[1727331460041,4.51780597,2624.1,2623.6,6.09835]
[1727331460245,1.46912597,2624.1,2623.6,3.04917]
[1727331460474,1.46912597,2624.1,2623.7,3.04911]
[1727331460620,0.7952,2624.1,2623.7,6.5142701]
[1727331463621,0.7952,2624.1,2623.8,3.04895]
[1727331463825,0.7952,2624.1,2623.9,3.04888]
[1727331464652,0.7952,2624.1,2624.0,3.04878]
[1727331464964,0.7542,2624.3,2624.1,3.0486]
[1727331465287,0.0380091,2624.4,2624.2,3.04854]
[1727331465447,0.0380091,2624.4,2624.3,9.5135901]
[1727331469119,0.0380091,2624.4,2624.3,10.2857901]
[1727331485994,0.0380091,2624.4,2624.3,29.9657901]
[1727331490064,0.0380091,2624.4,2624.3,25.72843]
[1727331490266,0.0380091,2624.4,2624.3,29.1935901]
[1727331491991,0.0380091,2624.4,2624.3,9.5135901]
[1727331493871,0.0380091,2624.4,2624.3,10.2673901]
[1727331495195,0.0380091,2624.4,2624.3,6.80223]
[1727331495510,0.0380091,2624.4,2624.3,10.29086161]
[1727331495726,0.0380091,2624.4,2624.3,10.2673901]
[1727331497151,0.0380091,2624.4,2624.3,9.5135901]
[1727331498726,0.0380091,2624.4,2624.3,10.3013901]
[1727331504248,0.0380091,2624.4,2624.3,6.83623]
[1727331504432,0.0380091,2624.4,2624.3,10.32485986]
[1727331504640,0.0380091,2624.4,2624.3,10.3013901]
[1727331506472,0.0380091,2624.4,2624.3,8.43523406]
[1727331506775,0.0380091,2624.4,2624.3,3.82719998]
[1727331506954,0.0380091,2624.4,2624.3,3.85066958]
[1727331507538,0.0380091,2624.4,2624.3,6.89909958]
[1727331508367,0.0380091,2624.4,2624.3,7.75297198]
[1727331508534,0.0380091,2624.4,2624.3,6.87562998]
[1727331508872,0.0380091,2624.4,2624.3,6.89909706]
[1727331509232,0.0380091,2624.4,2624.3,7.752963]
[1727331509567,0.0380091,2624.4,2624.3,7.72949592]
[1727331509780,0.0380091,2624.4,2624.3,29.13276364]
[1727331510271,0.0380091,2624.4,2624.3,29.58197776]